Workbook

Sheet 1. Forside
A1: Hørsholm Vand ApS (Vand)
D8: Bilag A
D13: Indholdsfortegnelse
C16: Fane nr. 2 | D16: Samlet prisloft
C17: Fane nr. 3 | D17: Driftsomkostninger
C18: Fane nr. 4 | D18: Historiske investeringer
C19: Fane nr. 5 | D19: Gennemførte investeringer
C20: Fane nr. 6 | D20: Korrektion investeringer
C21: Fane nr. 7 | D21: Planlagte investeringer
C22: Fane nr. 8 | D22: 1:1 omkostninger
C23: Fane nr. 9 | D23: Miljø- og servicemål
C24: Fane nr. 10 | D24: Nettofinansielle poster
C25: Fane nr. 11 | D25: Over- eller underdækning
C26: Fane nr. 12 | D26: Kontrol med indtægtsrammen og oversigt over ekstraordinære effektiviseringsgevinster

Sheet 2. Samlet prisloft
A1: ='1. Forside'!A1 -> Hørsholm Vand ApS (Vand)
B4: Fane 2. Samlet prisloft for 2015
B6: Driftsomkostninger
B7: Driftsomkostninger i prisloftet for 2014 | C7: ='3. Driftsomkostninger'!C20 -> 7739568.17 | D7: kr.
B8: Bortfald af væsentlige omkostninger | C8: =-'3. Driftsomkostninger'!C16 -> 0 | D8: kr.
B9: Korrektion for prisudviklingen 2014-2015 | C9: ='3. Driftsomkostninger'!C22 -> 6191.654536 | D9: kr.
B10: Forhøjelse til effektivt niveau iht. benchmarkingen | C10: ='3. Driftsomkostninger'!C28 -> 0 | D10: kr.
B11: Korrektion for generelt effektiviseringskrav | C11: =-'3. Driftsomkostninger'!C34 -> -34054.09995 | D11: kr.
B12: Korrektion for individuelt effektiviseringskrav | C12: =-'3. Driftsomkostninger'!C43 -> -386978.4085 | D12: kr.
B13: Driftsomkostninger i alt | C13: =SUM(C7:C12) -> 7324727.316 | D13: kr. | E13: =C13 -> 7324727.316 | F13: kr.
B14: Investeringer
B15: Tillæg for historiske investeringer | C15: ='4. Historiske investeringer'!C9 -> 3128979.643 | D15: kr.
B16: Tillæg for gennemførte investeringer i 2011-2013 | C16: ='5. Gennemførte investeringer'!F35 -> 981183.7556 | D16: kr.
B17: Korrektion af tillæg for planlagte investeringer vedrørende 2013 | C17: ='6. Korrektion investeringer'!C10 -> 37930.64258 | D17: kr.
B18: Tillæg for planlagte investeringer i 2014 og 2015 | C18: ='7. Planlagte investeringer'!F37 -> 397883.3333 | D18: kr.
B19: Investeringstillæg i alt | C19: =SUM(C15:C18) -> 4545977.375 | D19: kr. | E19: =C19 -> 4545977.375 | F19: kr.
B20: Øvrige omkostninger mv.
B21: Tillæg for 1:1 omkostninger i 2015 | C21: ='8. 1-1 omkostninger'!C10 -> 5061500 | D21: kr.
B22: Tillæg for afgift for ledningsført vand i 2015 | C22: ='8. 1-1 omkostninger'!C15 -> 7870000 | D22: kr.
B23: Tillæg vedr. revisorerklæringer og DANVA/FVD-kontingent | C23: ='8. 1-1 omkostninger'!C21 -> 54000 | D23: kr.
B24: Korrektion ift. faktiske 1:1 omkostninger i 2013 | C24: ='8. 1-1 omkostninger'!C27 -> -457232 | D24: kr.
B25: Tillæg for driftsomkostninger til miljø- og servicemål i 2015 | C25: ='9. Miljø- og servicemål'!C10 -> 131000 | D25: kr.
B26: Korrektion ift. faktiske driftsomkostninger til miljø- og servicemål i 2013 | C26: ='9. Miljø- og servicemål'!C17 -> -57909 | D26: kr.
B27: Tillæg/fradrag for nettofinansielle poster i 2015 | C27: ='10. Nettofinansielle poster'!C9 -> 72000 | D27: kr.
B28: Korrektion ift. faktiske nettofinansielle poster i 2013 | C28: ='10. Nettofinansielle poster'!C16 -> -49259 | D28: kr.
B29: Øvrige omkostninger mv. i alt | C29: =SUM(C21:C28) -> 12624100 | D29: kr. | E29: =C29 -> 12624100 | F29: kr.
B30: Historisk over- eller underdækning
B31: Tillæg/fradrag for over- eller underdækning til og med 2010 | C31: ='11. Over- eller underdækning'!C11 -> 173097.7513 | D31: kr. | E31: =C31 -> 173097.7513 | F31: kr.
B32: Korrektion i forhold til tidligere indtægtsramme
B33: Korrektion for overholdelse af indtægtsramme i prisloft 2013 | C33: ='12. Kontrol med indtægtsrammen'!E27 -> 1080144.534 | D33: kr. | E33: =C33 -> 1080144.534 | F33: kr.
B34: Samlet prisloft
B35: Indtægtsramme i 2015 | E35: =SUM(E13:E33) -> 25748046.98 | F35: kr.
B36: Debiteret vandmængde i 2013 | E36: 1282827 | F36: m3
B37: Prisloft 2015 | E37: =E35/E36 -> 20.07133228 | F37: kr./m3
B38: Prisloft 2015 ekskl. afgift for ledningsført vand | E38: =(E35-C22)/E36 -> 13.93644426 | F38: kr./m3

Sheet 3. Driftsomkostninger
A1: ='1. Forside'!A1 -> Hørsholm Vand ApS (Vand)
B4: Fane 3. Driftsomkostninger
B6: Driftsomkostningerne i prisloftet for 2014
B7: Korrigerede driftsomkostninger i prisloftet for 2013 (DOiPL 2013) | C7: 8020278 | D7: kr.
B8: Prisfremskrivning 1,5 pct. | C8: =0.015*SUM(C7:C7) -> 120304.17 | D8: kr.
B9: Generelt effektiviseringskrav (0 pct.) | C9: 0 | D9: kr.
B10: Individuelt effektiviseringskrav | C10: -401014 | D10: kr.
B11: Driftsomkostningerne i prisloftet for 2014 (DOiPL 2014) | C11: =SUM(C7:C10) -> 7739568.17 | D11: kr.
B14: Korrektion for forventet bortfald af væsentlige omkostninger
B15: Selskabets indberettede bortfald af væsentlige omkostninger inden 2015 | C15: 0 | D15: kr.
B16: Korrektion for forventet bortfald | C16: =SUM(C15:C15) -> 0 | D16: kr.
B19: Korrektion for prisudviklingen fra 2014-2015
B20: Driftsomkostningerne i prisloftet for 2014 | C20: =C11-C16 -> 7739568.17 | D20: kr.
B21: Prisudvikling 2014 - 2015 | C21: 0.08 | D21: pct.
B22: Korrektion for prisudvikling | C22: =C20*(C21/100) -> 6191.654536 | D22: kr.
B25: Eventuel forhøjelse til effektivt niveau iht. benchmarkingen
B26: Selskabets effektive driftsomkostninger iht. benchmarkingen | C26: 3049390 | D26: kr.
B27: Selskabets pristalskorrigerede driftsomkostninger i 2015-niveau | C27: =C20+C22 -> 7745759.825 | D27: kr.
B28: Eventuel forhøjelse til effektivt niveau | C28: =IF(C27>C26,0,C26-C27) -> 0 | D28: kr.
B31: Korrektion for generelt effektiviseringskrav
B32: Driftsomkostningerne i prisloftet for 2014 | C32: =C20 -> 7739568.17 | D32: kr.
B33: Generelt effektiviseringskrav | C33: 0.44 | D33: pct.
B34: Endeligt generelt effektiviseringskrav | C34: =C32*(C33/100) -> 34054.09995 | D34: kr.
B37: Korrektion for individuelt effektiviseringskrav
B38: Rå effektiviseringspotentiale | C38: 4760608 | D38: kr.
B39: Effektiviseringspotentiale efter eventuel korrektion for særlige forhold | C39: 4690178 | D39: kr.
B40: Effektiviseringspotentiale efter forsigtighedshensyn | C40: 3497511 | D40: kr.
B41: Effektiviseringspotentiale efter eventuel korrektion for sammensætning af signifikante costdrivere | C41: 3013423 | D41: kr.
B42: Umiddelbart effektiviseringskrav | C42: =C41/4 -> 753355.75 | D42: kr.
B43: Endeligt individuelt effektiviseringskrav | C43: =IF(C42>0.05*C20,0.05*C20,IF(C42<0.01*C20,0,C42)) -> 386978.4085 | D43: kr.

Sheet 4. Historiske investeringer
A1: ='3. Driftsomkostninger'!A1 -> Hørsholm Vand ApS (Vand)
B4: Fane 4. Historiske investeringer
B6: Tillæg for historiske investeringer
B7: Værdi af selskabets materielle anlægsaktiver pr. 1. januar 2010 | C7: 138111815.5 | D7: kr.
B8: Den årlige standardafskrivning på de materielle anlægsaktiver iht. POLKA | C8: 3128979.643 | D8: kr.
B9: Tillæg i alt i 2015 | C9: =C8 -> 3128979.643 | D9: kr.

Sheet 5. Gennemførte investeringer
A1: ='4. Historiske investeringer'!A1 -> Hørsholm Vand ApS (Vand)
B4: Fane 5. Gennemførte investeringer i 2010 - 2013
B6: Tillæg for gennemførte investeringer i 2013
B7: Beskrivelse af investeringen | C7: Årstal | D7: Std. levetid (år) | E7: Anskaffelses-pris (kr.) | F7: Afskrivning
B8: Arbejdsplads | C8: 2013 | D8: 5 | E8: 218461 | F8: =E8/D8 -> 43692.2 | G8: kr.
B9: Ventiler på Ø 50mm < Ledningsnet = Ø110 mm | C9: 2013 | D9: 75 | E9: 9905 | F9: 132.0666667 | G9: kr.
B10: Ø 50mm < Ledningsnet = Ø110 mm | C10: 2013 | D10: 75 | E10: 9660 | F10: 128.8 | G10: kr.
B11: SRO-brønd/kvarterbrønd/sektionsbrønd, Konstruktioner | C11: 2013 | D11: 38 | E11: 166073 | F11: 4370.342105 | G11: kr.
B12: Lager | C12: 2013 | D12: 50 | E12: 2155920 | F12: 43118.4 | G12: kr.
B13: Ledningsnet = Ø50 mm | C13: 2013 | D13: 10 | E13: 178471 | F13: =E13/D13 -> 17847.1 | G13: kr.
B14: Ventiler på ledningsnet = Ø50 mm | C14: 2013 | D14: 73 | E14: 110203 | F14: 1509.630137 | G14: kr.
B15: Ventiler på Ø 50mm < Ledningsnet = Ø110 mm | C15: 2013 | D15: 75 | E15: 10047 | F15: 133.96 | G15: kr.
B16: Ventiler på Ø 50mm < Ledningsnet = Ø110 mm | C16: 2013 | D16: 75 | E16: 8363 | F16: 111.5066667 | G16: kr.
B17: Ventiler på Ø110 mm < Ledningsnet = Ø 250 mm | C17: 2013 | D17: 75 | E17: 13181 | F17: 175.7466667 | G17: kr.
B18: Ventiler på Ø110 mm < Ledningsnet = Ø 250 mm | C18: 2013 | D18: 75 | E18: 71307 | F18: 950.76 | G18: kr.
B19: Ventiler på Ø110 mm < Ledningsnet = Ø 250 mm | C19: 2013 | D19: 75 | E19: 54177 | F19: 722.36 | G19: kr.
B20: Afregningsmålere, mekaniske | C20: 2013 | D20: 12 | E20: 1099455 | F20: 91621.25 | G20: kr.
B21: Ledningsnet = Ø50 mm | C21: 2013 | D21: 75 | E21: 442484 | F21: 5899.786667 | G21: kr.
B22: Ø 50mm < Ledningsnet = Ø110 mm | C22: 2013 | D22: 75 | E22: 1552768 | F22: 20703.57333 | G22: kr.
B23: Ø 50mm < Ledningsnet = Ø110 mm | C23: 2013 | D23: 75 | E23: 194182 | F23: 2589.093333 | G23: kr.
B24: Ø 50mm < Ledningsnet = Ø110 mm | C24: 2013 | D24: 75 | E24: 193978 | F24: 2586.373333 | G24: kr.
B25: Ledningsnet = Ø50 mm | C25: 2013 | D25: 75 | E25: 74774 | F25: 996.9866667 | G25: kr.
B26: Ø 50mm < Ledningsnet = Ø110 mm | C26: 2013 | D26: 75 | E26: 261414 | F26: 3485.52 | G26: kr.
B27: SRO-brønd/kvarterbrønd/sektionsbrønd, SRO | C27: 2013 | D27: 20 | E27: 412222 | F27: 20611.1 | G27: kr.
B28: Ventiler på ledningsnet = Ø50 mm | C28: 2013 | D28: 70 | E28: 36948 | F28: 527.8285714 | G28: kr.
B29: Ventiler på ledningsnet = Ø50 mm | C29: 2013 | D29: 70 | E29: 73497 | F29: 1049.957143 | G29: kr.
B30: Ventiler på ledningsnet = Ø50 mm | C30: 2013 | D30: 75 | E30: 166209 | F30: 2216.12 | G30: kr.
B31: Ventiler på ledningsnet = Ø50 mm | C31: 2013 | D31: 75 | E31: 17176 | F31: 229.0133333 | G31: kr.
B32: Ventiler på ledningsnet = Ø50 mm | C32: 2013 | D32: 75 | E32: 38251 | F32: 510.0133333 | G32: kr.
B33: Tillæg for 2013 | F33: =SUM(F8:F32) -> 265919.488 | G33: kr.
B34: Tillæg for 2010 - 2012 | F34: 715264.2677 | G34: kr.
B35: Samlet tillæg for gennemførte investeringer | F35: =F33+F34 -> 981183.7556 | G35: kr.

Sheet 6. Korrektion investeringer
A1: ='5. Gennemførte investeringer'!A1 -> Hørsholm Vand ApS (Vand)
B4: Fane 6. Korrektion af tillæg for planlagte investeringer
B6: Korrektion af tillæg for planlagte investeringer vedr. 2013
B7: Tillæg for planlagte investeringer i 2013 i prisloft 2013 | C7: 254975 | D7: kr.
B8: Tillæg for planlagte investeringer i 2013 i prisloft 2014 | C8: 238933.3333 | D8: kr.
B9: Selskabets faktiske afskrivninger på gennemførte investeringer i 2013 | C9: ='5. Gennemførte investeringer'!F33 -> 265919.488 | D9: kr.
B10: Korrektion af tillæg for planlagte investeringer vedr. 2013 | C10: =C9-C7+C9-C8 -> 37930.64258 | D10: kr.

Sheet 7. Planlagte investeringer
A1: ='6. Korrektion investeringer'!A1 -> Hørsholm Vand ApS (Vand)
B4: Fane 7. Planlagte investeringer
B6: Tillæg for planlagte investeringer i 2014 og 2015
B7: Beskrivelse af investeringen | C7: Årstal | D7: Std. levetid (år) | E7: Anskaffelses-pris (kr.) | F7: Afskrivning
B8: Ventiler på Ø 50mm < Ledningsnet = Ø110 mm | C8: 2014 | D8: 75 | E8: 197500 | F8: =E8/D8 -> 2633.333333 | G8: kr.
B9: Lager | C9: 2014 | D9: 75 | E9: 80000 | F9: =E9/D9 -> 1066.666667 | G9: kr.
B10: Køretøjer, små lastvogne (< 3.500 kg.) | C10: 2014 | D10: 5 | E10: 550000 | F10: =E10/D10 -> 110000 | G10: kr.
B11: Ø 50mm < Ledningsnet = Ø110 mm | C11: 2014 | D11: 75 | E11: 197500 | F11: 2633.333333 | G11: kr.
B12: Ø 50mm < Ledningsnet = Ø110 mm | C12: 2014 | D12: 75 | E12: 52500 | F12: 700 | G12: kr.
B13: Ventiler på ledningsnet = Ø50 mm | C13: 2014 | D13: 75 | E13: 52500 | F13: 700 | G13: kr.
B14: Ledningsnet = Ø50 mm | C14: 2014 | D14: 75 | E14: 150000 | F14: 2000 | G14: kr.
B15: Ø 50mm < Ledningsnet = Ø110 mm | C15: 2014 | D15: 75 | E15: 300000 | F15: 4000 | G15: kr.
B16: Ventiler på ledningsnet = Ø50 mm | C16: 2014 | D16: 75 | E16: 90000 | F16: 1200 | G16: kr.
B17: Ventiler på Ø 50mm < Ledningsnet = Ø110 mm | C17: 2014 | D17: 75 | E17: 60000 | F17: 800 | G17: kr.
B18: Afregningsmålere, mekaniske | C18: 2014 | D18: 8 | E18: 550000 | F18: 68750 | G18: kr.
B19: Ledningsnet = Ø50 mm | C19: 2014 | D19: 75 | E19: 112500 | F19: 1500 | G19: kr.
B20: Ø 50mm < Ledningsnet = Ø110 mm | C20: 2014 | D20: 75 | E20: 225000 | F20: 3000 | G20: kr.
B21: Ventiler på ledningsnet = Ø50 mm | C21: 2014 | D21: 75 | E21: 67500 | F21: 900 | G21: kr.
B22: Ventiler på Ø 50mm < Ledningsnet = Ø110 mm | C22: 2014 | D22: 75 | E22: 45000 | F22: 600 | G22: kr.
B23: Ledningsnet = Ø50 mm | C23: 2014 | D23: 75 | E23: 600000 | F23: 8000 | G23: kr.
B24: Ø 50mm < Ledningsnet = Ø110 mm | C24: 2014 | D24: 75 | E24: 1200000 | F24: 16000 | G24: kr.
B25: Ventiler på ledningsnet = Ø50 mm | C25: 2014 | D25: 75 | E25: 360000 | F25: 4800 | G25: kr.
B26: Ventiler på Ø 50mm < Ledningsnet = Ø110 mm | C26: 2014 | D26: 75 | E26: 240000 | F26: 3200 | G26: kr.
B27: SRO-brønd/kvarterbrønd/sektionsbrønd, Mek./EL | C27: 2014 | D27: 20 | E27: 650000 | F27: 32500 | G27: kr.
B28: Ledningsnet = Ø50 mm | C28: 2015 | D28: 75 | E28: 250000 | F28: 3333.333333 | G28: kr.
B29: Ventiler på ledningsnet = Ø50 mm | C29: 2015 | D29: 75 | E29: 250000 | F29: 3333.333333 | G29: kr.
B30: Afregningsmålere, mekaniske | C30: 2015 | D30: 8 | E30: 500000 | F30: 62500 | G30: kr.
B31: Ledningsnet = Ø50 mm | C31: 2015 | D31: 75 | E31: 1195000 | F31: 15933.33333 | G31: kr.
B32: Ø 50mm < Ledningsnet = Ø110 mm | C32: 2015 | D32: 75 | E32: 2390000 | F32: 31866.66667 | G32: kr.
B33: Ventiler på ledningsnet = Ø50 mm | C33: 2015 | D33: 75 | E33: 717000 | F33: 9560 | G33: kr.
B34: Ventiler på Ø 50mm < Ledningsnet = Ø110 mm | C34: 2015 | D34: 75 | E34: 478000 | F34: 6373.333333 | G34: kr.
B35: Tillæg for 2014 | F35: =SUMIF(C8:C34,"2014",F8:F34) -> 264983.3333 | G35: kr.
B36: Tillæg for 2015 | F36: =SUMIF(C8:C34,"2015",F8:F34) -> 132900 | G36: kr.
B37: Tillæg i alt | F37: =F35+F36 -> 397883.3333 | G37: kr.

Sheet 8. 1-1 omkostninger
A1: ='7. Planlagte investeringer'!A1 -> Hørsholm Vand ApS (Vand)
B4: Fane 8. 1:1 omkostninger
B6: Tillæg for budgetterede 1:1 omkostninger i 2015
B7: Betaling til Forsyningssekretariatet | C7: 16500 | D7: kr.
B8: Køb af varer og tjenesteydelser hos et andet prisloftreguleret vandselskab | C8: 5000000 | D8: kr.
B9: Ejendomsskatter | C9: 45000 | D9: kr.
B10: Tillæg i alt | C10: =SUM(C7:C9) -> 5061500 | D10: kr.
B13: Tillæg for afgift for ledningsført vand i 2015
B14: Afgift for ledningsført vand (6,53 kr./m3) | C14: 7870000 | D14: kr.
B15: Tillæg i alt | C15: =SUM(C14:C14) -> 7870000 | D15: kr.
B18: Tillæg for budgetterede nødvendige udgifter til revisorerklæringer samt ordinært medlemskab af DANVA og FVD i 2015
B19: Betaling for ordinært medlemskab af DANVA/FVD | C19: 24000 | D19: kr.
B20: Betaling for revisorerklæringer | C20: 30000 | D20: kr.
B21: Tillæg i alt | C21: =SUM(C19:C20) -> 54000 | D21: kr.
B24: Korrektion af tillæg for faktiske 1:1 omkostninger (inkl. afgift for ledningsført vand, revisorerklæringer og ordinært medlemskab af DANVA/FVD) i 2013
B25: Selskabets faktiske 1:1 omkostninger mv. i 2013, jf. reguleringsregnskabet | C25: 12467268 | D25: kr.
B26: Tillæg for budgetterede 1:1 omkostninger mv. i prisloft 2013 | C26: 12924500 | D26: kr.
B27: Korrektion af tillæg for budgetterede 1:1 omkostninger mv. i 2013 | C27: =C25-C26 -> -457232 | D27: kr.

Sheet 9. Miljø- og servicemål
A1: ='8. 1-1 omkostninger'!A1 -> Hørsholm Vand ApS (Vand)
B4: Fane 9. Driftsomkostninger til miljø- og servicemål
B6: Tillæg for budgetterede driftsomkostninger til miljø- og servicemål i 2015
B7: Bactiquant - ekstra analyser | C7: 26000 | D7: kr.
B8: Dokumenteret Drikkevandssikkerhed (DDS) | C8: 40000 | D8: kr.
B9: UMS Dynamisk Telesyntese og sms-service | C9: 65000 | D9: kr.
B10: Tillæg i alt | C10: =SUM(C7:C9) -> 131000 | D10: kr.
B14: Korrektion af tillæg for faktiske driftsomkostninger til miljø- og servicemål i 2013
B15: Selskabets faktiske driftsomkostninger til miljø- og servicemål i 2013, jf. reguleringsregnskabet | C15: 194291 | D15: kr.
B16: Tillæg for budgetterede driftsomkostninger til miljø- og servicemål i prisloft 2013 | C16: 252200 | D16: kr.
B17: Korrektion af tillæg for budgetterede driftsomkostninger til miljø- og servicemål i 2013 | C17: =C15-C16 -> -57909 | D17: kr.

Sheet 10. Nettofinansielle poster
A1: ='2. Samlet prisloft'!A1 -> Hørsholm Vand ApS (Vand)
B4: Fane 10. Nettofinansielle poster
B6: Tillæg for budgetterede nettofinansielle poster i 2015
B7: Budgetterede renteudgifter og gebyrer i 2015 | C7: 74000 | D7: kr.
B8: Budgetterede renteindtægter i 2015 | C8: 2000 | D8: kr.
B9: Tillæg/fradrag i alt | C9: =C7-C8 -> 72000 | D9: kr.
B13: Korrektion af tillæg for faktiske nettofinansielle poster i 2013
B14: Selskabets faktiske nettofinansielle poster i 2013, jf. reguleringsregnskabet | C14: -259 | D14: kr.
B15: Tillæg for budgetterede nettofinansielle poster i prisloft 2013 | C15: 49000 | D15: kr.
B16: Korrektion af tillæg for budgetterede nettofinansielle poster i 2013 | C16: =C14-C15 -> -49259 | D16: kr.

Sheet 11. Over- eller underdækning
A1: ='1. Forside'!A1 -> Hørsholm Vand ApS (Vand)
B4: Fane 11. Over- eller underdækning til og med 2010
B6: Tillæg/fradrag for over- eller underdækning til og med 2010
B7: Opgjort over- eller underdækning per 31. december 2010 | C7: 1848433 | D7: kr.
B8: Heraf beløb indregnet i prislofterne for 2012 - 2014 | C8: 809846.4921 | D8: kr.
B9: Endnu ikke indregnet over- eller underdækning | C9: =C7-C8 -> 1038586.508 | D9: kr.
B10: Resterende indregningsperiode (fastsat i prisloftet for 2012) | C10: 6 | D10: år
B11: Tillæg/fradrag i alt | C11: =IF(C7=0,0,C9/C10) -> 173097.7513 | D11: kr.

Sheet 12. Kontrol med indtægtsrammen
A1: ='11. Over- eller underdækning'!A1 -> Hørsholm Vand ApS (Vand)
B4: Fane 12. Korrektion for overholdelse af indtægtsrammen i prisloftet for 2013
B6: Samlet opgørelse vedrørende overholdelse af indtægtsrammen i prisloftet for 2013
B7: Indtægtsramme i prisloftet for 2013 | E7: 27365152.53 | F7: kr.
B8: Ikke anvendt likviditet vedrørende investeringer i 2013
B9: Tillæg for historiske investeringer | C9: 3421019.511 | D9: kr.
B10: Tillæg for gennemførte investeringer i 2011 | C10: 990884 | D10: kr.
B11: Korrektion af tillæg for planlagte investeringer i 2011 | C11: 549207 | D11: kr.
B12: Tillæg for planlagte investeringer i 2012 og 2013 | C12: 377925 | D12: kr.
B13: Indtægter fra tilslutningsbidrag | C13: 0 | D13: kr.
B14: Indtægter fra salg af anlægsaktiver | C14: 0 | D14: kr.
B15: Erstatninger vedr. anlægsaktiver mv. | C15: 0 | D15: kr.
B16: Ekstraordinær effektiviseringsgevinst anvendt til investeringer | C16: 1355630 | D16: kr.
B17: Udgifter til investeringer | C17: -7258164 | D17: kr.
B18: Ikke anvendt likviditet vedr. investeringer i alt | C18: =SUM(C9:C17) -> -563498.4889 | D18: kr. | E18: =IF(C18<0,0,-C18) -> 0 | F18: kr.
B19: Ekstraordinære effektiviseringsgevinster anvendt til takstnedsættelse
B20: Ekstraordinær effektiviseringsgevinst anvendt til takstnedsættelse | C20: 0 | D20: kr. | E20: =-C20 -> 0 | F20: kr.
B21: Korrektion af ikke opkrævet tillæg fra 2011 i prisloft 2013
B22: Korrektion af ikke opkrævet tillæg fra 2011 i prisloft 2013 | C22: 0 | D22: kr. | E22: =-C22 -> 0 | F22: kr.
B23: Indtægter fra primære aktiviteter mv.
B24: Indtægter fra kubikmetertakster, faste takster, særbidrag, målergebyrer samt andre takster og gebyrer | C24: 26285008 | D24: kr.
B25: Andre indtægter i prisloftåret, som selskabet har opnået i forbindelse med eller som følge af selskabets primære aktiviteter | C25: 0 | D25: kr.
B26: Indtægter fra primære aktiviteter mv. i alt | C26: =SUM(C24:C25) -> 26285008 | D26: kr. | E26: =-C26 -> -26285008 | F26: kr.
B27: Tillæg/fradrag i prisloftet for 2015 i alt | E27: =E7+E18+E20+E22+E26 -> 1080144.534 | F27: kr.
B31: Oversigt over ekstraordinære effektiviseringsgevinster
C33: 2012 | E33: 2013 | G33: 2014 | I33: 2015 | K33: 2016
B34: Indhentet ekstraordinær effektiviseringsgevinst | C34: 1519903 | D34: kr. | E34: 1533020 | F34: kr. | H34: kr. | J34: kr. | L34: kr.
B35: Gevinst anvendt til investeringer | C35: 1519903 | D35: kr. | E35: 1355630 | F35: kr. | H35: kr. | J35: kr. | L35: kr.
B36: Gevinst anvendt til takstnedsættelse | C36: 0 | D36: kr. | E36: 0 | F36: kr. | H36: kr. | J36: kr. | L36: kr.
B37: Korrektion for effektiviseringsgevinst der ikke er anvendt inden 4 år | C37: 0 | D37: kr. | E37: 0 | F37: kr. | H37: kr. | J37: kr. | K37: =IF(C38>SUM(E35:I36),C38-SUM(E35:I36),0)*-1 -> 0 | L37: kr.
B38: Resterende gevinst | C38: =C34-C35-C36 -> 0 | D38: kr. | E38: =C38+E34-E35-E36 -> 177390 | F38: kr. | G38: =E38+G34-G35-G36 -> 177390 | H38: kr. | I38: =G38+I34-I35-I36 -> 177390 | J38: kr. | K38: =I38+K34-K35-K36+K37 -> 177390 | L38: kr.
